{"text_format":"1","workbook":"xlsx","n_sheets":2,"sheets":["save","order2"],"not_rendered":{"charts":0,"images":0,"macros":1,"external_links":1,"defined_names":22,"comments":0,"pivot_tables":0},"unopened":[],"bounds":{"document_bytes":16777216,"sheet_cells":100000,"rows_first":2000,"rows_last":500,"rows_between":2000,"halvings":0,"cell_chars":16384,"cell_head_chars":4096},"cells_cut":0,"cells_raw":0,"read":"whole","date_system":"1900"}

{"sheet":"save","index":0,"n_rows":17,"n_cols":117,"rows_kept":17,"cut":false,"hidden":false,"merged":[[0,0,0,1],[0,2,0,5],[0,8,0,10],[0,11,0,15],[1,8,1,15]]}
[44339.490944560188,null,{"$f":"[1]MyDate!A1","v":"اسم الفندق هنا"},null,null,null,{"$f":"[1]MyDate!E1","v":300},{"$f":"[1]MyDate!H1","v":600},{"$f":"NOW()","v":"2021-06-27T22:18:28.640"},null,null,{"$f":"NOW()","v":"2021-06-27T22:18:28.640"}]
["00:00:00",null,null,null,null,null,null,null,{"$f":"OFFSET([1]MyDate!C3,MAX(ROW([1]MyDate!C:C)*([1]MyDate!C:C<>\"\"))-3,0)","v":{"$error":"#VALUE!"}}]
["رقم الفاتورة","نوع الحجز\nشركة-افراد","اسم الشركة\nاسم النزيل","اسم المندوب الشركة\nاسم المرافق ( افراد )","الجنسية","رقم الشركة\nرقم هوية النزيل","اسم المسؤل عن الحجز","تاريخ الدخول","تاريخ الخروج","السعر\nللنزيل","عدد الغرف","عدد الاسرة","عدد الليالي","الاجمالي للفاراد","الاسم مختصر","الايام",1,2,3,4,5,6,7,8,9,10,11,12,13,14,15,16,17,18,19,20,21,22,23,24,25,26,27,28,29,30,31,32,33,34,35,36,37,38,39,40,41,42,43,44,45,46,47,48,49,50,51,52,53,54,55,56,57,58,59,60,61,62,63,64,65,66,67,68,69,70,71,72,73,74,75,76,77,78,79,80,81,82,83,84,85,86,87,88,89,90,91,92,93,94,95,96,97,98,99,100,"ارقام الغرف"]
[1,"شركة","كميدار للسياحة","محمد","مصري",260,"احمد","2021-06-20","2021-06-30","شركة",1,0,10,"شركة","كميدار",{"$f":"IF(H4=\"\",\"\",IF(I4<=TODAY(),\"منتهي\",DATEDIF(TODAY(),I4,\"d\")))","v":3},401,null,null,null,null,null,null,null,null,null,null,null,null,null,null,null,null,null,null,null,null,null,null,null,null,null,null,null,null,null,null,null,null,null,null,null,null,null,null,null,null,null,null,null,null,null,null,null,null,null,null,null,null,null,null,null,null,null,null,null,null,null,null,null,null,null,null,null,null,null,null,null,null,null,null,null,null,null,null,null,null,null,null,null,null,null,null,null,null,null,null,null,null,null,null,null,null,null,null,null,{"$f":"CONCATENATE(Q4,\"~\",R4,\"~\",S4,\"~\",T4,\"~\",U4,\"~\",V4,\"~\",W4,\"~\",X4,\"~\",Y4,\"~\",Z4,\"~\",AA4,\"~\",AB4,\"~\",AC4,\"~\",AD4,\"~\",AE4,\"~\",AF4,\"~\",AG4,\"~\",AH4,\"~\",AI4,\"~\",AJ4,\"~\",AK4,\"~\",AL4,\"~\",AM4,\"~\",AN4,\"~\",AO4,\"~\",AP4,\"~\",AQ4,\"~\",AR4,\"~\",AS4,\"~\",AT4,\"~\",AU4,\"~\",AV4,\"~\",AW4,\"~\",AX4,\"~\",AY4,\"~\",AZ4,\"~\",BA4,\"~\",BB4,\"~\",BC4,\"~\",BD4,\"~\",BE4,\"~\",BF4,\"~\",BG4,\"~\",BH4,\"~\",BI4,\"~\",BJ4,\"~\",BK4,\"~\",BL4,\"~\",BM4,\"~\",BN4,\"~\",BO4,\"~\",BP4,\"~\",BQ4,\"~\",BR4,\"~\",BS4,\"~\",BT4,\"~\",BU4,\"~\",BV4,\"~\",BW4,\"~\",BX4,\"~\",BY4,\"~\",BZ4,\"~\",CA4,\"~\",CB4,\"~\",CC4,\"~\",CD4,\"~\",CE4,\"~\",CF4,\"~\",CG4,\"~\",CH4,\"~\",CI4,\"~\",CJ4,\"~\",CK4,\"~\",CL4,\"~\",CM4,\"~\",CN4,\"~\",CO4,\"~\",CP4,\"~\",CQ4,\"~\",CR4,\"~\",CS4,\"~\",CT4,\"~\",CU4,\"~\",CV4,\"~\",CW4,\"~\",CX4,\"~\",CY4,\"~\",CZ4,\"~\",DA4,\"~\",DB4,\"~\",DC4,\"~\",DD4,\"~\",DE4,\"~\",DF4,\"~\",DG4,\"~\",DH4,\"~\",DI4,\"~\",DJ4,\"~\",DK4,\"~\",+DL4)","v":"401~~~~~~~~~~~~~~~~~~~~~~~~~~~~~~~~~~~~~~~~~~~~~~~~~~~~~~~~~~~~~~~~~~~~~~~~~~~~~~~~~~~~~~~~~~~~~~~~~~~"}]
[2,"افراد","محمد با خالد","زوجته","سعودي",1010101010,"نهاري","2021-06-25","2021-06-27",150,1,0,2,300,"محمد",{"$f":"IF(H5=\"\",\"\",IF(I5<=TODAY(),\"منتهي\",DATEDIF(TODAY(),I5,\"d\")))","v":"منتهي"},105,null,null,null,null,null,null,null,null,null,null,null,null,null,null,null,null,null,null,null,null,null,null,null,null,null,null,null,null,null,null,null,null,null,null,null,null,null,null,null,null,null,null,null,null,null,null,null,null,null,null,null,null,null,null,null,null,null,null,null,null,null,null,null,null,null,null,null,null,null,null,null,null,null,null,null,null,null,null,null,null,null,null,null,null,null,null,null,null,null,null,null,null,null,null,null,null,null,null,null,{"$f":"CONCATENATE(Q5,\"~\",R5,\"~\",S5,\"~\",T5,\"~\",U5,\"~\",V5,\"~\",W5,\"~\",X5,\"~\",Y5,\"~\",Z5,\"~\",AA5,\"~\",AB5,\"~\",AC5,\"~\",AD5,\"~\",AE5,\"~\",AF5,\"~\",AG5,\"~\",AH5,\"~\",AI5,\"~\",AJ5,\"~\",AK5,\"~\",AL5,\"~\",AM5,\"~\",AN5,\"~\",AO5,\"~\",AP5,\"~\",AQ5,\"~\",AR5,\"~\",AS5,\"~\",AT5,\"~\",AU5,\"~\",AV5,\"~\",AW5,\"~\",AX5,\"~\",AY5,\"~\",AZ5,\"~\",BA5,\"~\",BB5,\"~\",BC5,\"~\",BD5,\"~\",BE5,\"~\",BF5,\"~\",BG5,\"~\",BH5,\"~\",BI5,\"~\",BJ5,\"~\",BK5,\"~\",BL5,\"~\",BM5,\"~\",BN5,\"~\",BO5,\"~\",BP5,\"~\",BQ5,\"~\",BR5,\"~\",BS5,\"~\",BT5,\"~\",BU5,\"~\",BV5,\"~\",BW5,\"~\",BX5,\"~\",BY5,\"~\",BZ5,\"~\",CA5,\"~\",CB5,\"~\",CC5,\"~\",CD5,\"~\",CE5,\"~\",CF5,\"~\",CG5,\"~\",CH5,\"~\",CI5,\"~\",CJ5,\"~\",CK5,\"~\",CL5,\"~\",CM5,\"~\",CN5,\"~\",CO5,\"~\",CP5,\"~\",CQ5,\"~\",CR5,\"~\",CS5,\"~\",CT5,\"~\",CU5,\"~\",CV5,\"~\",CW5,\"~\",CX5,\"~\",CY5,\"~\",CZ5,\"~\",DA5,\"~\",DB5,\"~\",DC5,\"~\",DD5,\"~\",DE5,\"~\",DF5,\"~\",DG5,\"~\",DH5,\"~\",DI5,\"~\",DJ5,\"~\",DK5,\"~\",+DL5)","v":"105~~~~~~~~~~~~~~~~~~~~~~~~~~~~~~~~~~~~~~~~~~~~~~~~~~~~~~~~~~~~~~~~~~~~~~~~~~~~~~~~~~~~~~~~~~~~~~~~~~~"}]
[3,"شركة","الاوائل","خالد","مصري",272,"نهاري","2021-06-25","2021-06-28","شركة",7,0,3,"شركة","الاوائل",{"$f":"IF(H6=\"\",\"\",IF(I6<=TODAY(),\"منتهي\",DATEDIF(TODAY(),I6,\"d\")))","v":1},202,205,207,209,210,215,220,null,null,null,null,null,null,null,null,null,null,null,null,null,null,null,null,null,null,null,null,null,null,null,null,null,null,null,null,null,null,null,null,null,null,null,null,null,null,null,null,null,null,null,null,null,null,null,null,null,null,null,null,null,null,null,null,null,null,null,null,null,null,null,null,null,null,null,null,null,null,null,null,null,null,null,null,null,null,null,null,null,null,null,null,null,null,null,null,null,null,null,null,null,"202~205~207~209~210~215~220~~~~~~~~~~~~~~~~~~~~~~~~~~~~~~~~~~~~~~~~~~~~~~~~~~~~~~~~~~~~~~~~~~~~~~~~~~~~~~~~~~~~~~~~~~~~~"]
[4,"شركة","تروزم مكه","محمد","مصري",299,"نهاري","2021-06-26","2021-06-30","شركة",10,0,4,"شركة","تروزم",3,301,305,307,908,309,510,718,717,102,103,null,null,null,null,null,null,null,null,null,null,null,null,null,null,null,null,null,null,null,null,null,null,null,null,null,null,null,null,null,null,null,null,null,null,null,null,null,null,null,null,null,null,null,null,null,null,null,null,null,null,null,null,null,null,null,null,null,null,null,null,null,null,null,null,null,null,null,null,null,null,null,null,null,null,null,null,null,null,null,null,null,null,null,null,null,null,null,null,null,null,"301~305~307~908~309~510~718~717~102~103~~~~~~~~~~~~~~~~~~~~~~~~~~~~~~~~~~~~~~~~~~~~~~~~~~~~~~~~~~~~~~~~~~~~~~~~~~~~~~~~~~~~~~~~~~"]
[5,"افراد","حسام الدين","زوجته","سعودي",22222222222,"محمد","2021-06-26","2021-06-28",150,3,6,2,900,"حسام",1,1010,1020,1021,null,null,null,null,null,null,null,null,null,null,null,null,null,null,null,null,null,null,null,null,null,null,null,null,null,null,null,null,null,null,null,null,null,null,null,null,null,null,null,null,null,null,null,null,null,null,null,null,null,null,null,null,null,null,null,null,null,null,null,null,null,null,null,null,null,null,null,null,null,null,null,null,null,null,null,null,null,null,null,null,null,null,null,null,null,null,null,null,null,null,null,null,null,null,null,null,null,"1010~1020~1021~~~~~~~~~~~~~~~~~~~~~~~~~~~~~~~~~~~~~~~~~~~~~~~~~~~~~~~~~~~~~~~~~~~~~~~~~~~~~~~~~~~~~~~~~~~~~~~~~"]
[6,"شركة","الفتح للسياحة","ياسر","مصري",277,"سهيل","2021-06-25","2021-06-30","شركة",9,18,5,"شركة","الفتح",3,601,404,405,406,407,408,409,410,415,null,null,null,null,null,null,null,null,null,null,null,null,null,null,null,null,null,null,null,null,null,null,null,null,null,null,null,null,null,null,null,null,null,null,null,null,null,null,null,null,null,null,null,null,null,null,null,null,null,null,null,null,null,null,null,null,null,null,null,null,null,null,null,null,null,null,null,null,null,null,null,null,null,null,null,null,null,null,null,null,null,null,null,null,null,null,null,null,null,null,null,"601~404~405~406~407~408~409~410~415~~~~~~~~~~~~~~~~~~~~~~~~~~~~~~~~~~~~~~~~~~~~~~~~~~~~~~~~~~~~~~~~~~~~~~~~~~~~~~~~~~~~~~~~~~~"]
[null,null,null,null,null,null,null,null,null,null,null,null,null,null,null,"",null,null,null,null,null,null,null,null,null,null,null,null,null,null,null,null,null,null,null,null,null,null,null,null,null,null,null,null,null,null,null,null,null,null,null,null,null,null,null,null,null,null,null,null,null,null,null,null,null,null,null,null,null,null,null,null,null,null,null,null,null,null,null,null,null,null,null,null,null,null,null,null,null,null,null,null,null,null,null,null,null,null,null,null,null,null,null,null,null,null,null,null,null,null,null,null,null,null,null,null,"~~~~~~~~~~~~~~~~~~~~~~~~~~~~~~~~~~~~~~~~~~~~~~~~~~~~~~~~~~~~~~~~~~~~~~~~~~~~~~~~~~~~~~~~~~~~~~~~~~~"]
[null,null,null,null,null,null,null,null,null,null,null,null,null,null,null,"",null,null,null,null,null,null,null,null,null,null,null,null,null,null,null,null,null,null,null,null,null,null,null,null,null,null,null,null,null,null,null,null,null,null,null,null,null,null,null,null,null,null,null,null,null,null,null,null,null,null,null,null,null,null,null,null,null,null,null,null,null,null,null,null,null,null,null,null,null,null,null,null,null,null,null,null,null,null,null,null,null,null,null,null,null,null,null,null,null,null,null,null,null,null,null,null,null,null,null,null,"~~~~~~~~~~~~~~~~~~~~~~~~~~~~~~~~~~~~~~~~~~~~~~~~~~~~~~~~~~~~~~~~~~~~~~~~~~~~~~~~~~~~~~~~~~~~~~~~~~~"]
[null,null,null,null,null,null,null,null,null,null,null,null,null,null,null,"",null,null,null,null,null,null,null,null,null,null,null,null,null,null,null,null,null,null,null,null,null,null,null,null,null,null,null,null,null,null,null,null,null,null,null,null,null,null,null,null,null,null,null,null,null,null,null,null,null,null,null,null,null,null,null,null,null,null,null,null,null,null,null,null,null,null,null,null,null,null,null,null,null,null,null,null,null,null,null,null,null,null,null,null,null,null,null,null,null,null,null,null,null,null,null,null,null,null,null,null,"~~~~~~~~~~~~~~~~~~~~~~~~~~~~~~~~~~~~~~~~~~~~~~~~~~~~~~~~~~~~~~~~~~~~~~~~~~~~~~~~~~~~~~~~~~~~~~~~~~~"]
[null,null,null,null,null,null,null,null,null,null,null,null,null,null,null,"",null,null,null,null,null,null,null,null,null,null,null,null,null,null,null,null,null,null,null,null,null,null,null,null,null,null,null,null,null,null,null,null,null,null,null,null,null,null,null,null,null,null,null,null,null,null,null,null,null,null,null,null,null,null,null,null,null,null,null,null,null,null,null,null,null,null,null,null,null,null,null,null,null,null,null,null,null,null,null,null,null,null,null,null,null,null,null,null,null,null,null,null,null,null,null,null,null,null,null,null,"~~~~~~~~~~~~~~~~~~~~~~~~~~~~~~~~~~~~~~~~~~~~~~~~~~~~~~~~~~~~~~~~~~~~~~~~~~~~~~~~~~~~~~~~~~~~~~~~~~~"]
[null,null,null,null,null,null,null,null,null,null,null,null,null,null,null,"",null,null,null,null,null,null,null,null,null,null,null,null,null,null,null,null,null,null,null,null,null,null,null,null,null,null,null,null,null,null,null,null,null,null,null,null,null,null,null,null,null,null,null,null,null,null,null,null,null,null,null,null,null,null,null,null,null,null,null,null,null,null,null,null,null,null,null,null,null,null,null,null,null,null,null,null,null,null,null,null,null,null,null,null,null,null,null,null,null,null,null,null,null,null,null,null,null,null,null,null,"~~~~~~~~~~~~~~~~~~~~~~~~~~~~~~~~~~~~~~~~~~~~~~~~~~~~~~~~~~~~~~~~~~~~~~~~~~~~~~~~~~~~~~~~~~~~~~~~~~~"]
[null,null,null,null,null,null,null,null,null,null,null,null,null,null,"","",null,null,null,null,null,null,null,null,null,null,null,null,null,null,null,null,null,null,null,null,null,null,null,null,null,null,null,null,null,null,null,null,null,null,null,null,null,null,null,null,null,null,null,null,null,null,null,null,null,null,null,null,null,null,null,null,null,null,null,null,null,null,null,null,null,null,null,null,null,null,null,null,null,null,null,null,null,null,null,null,null,null,null,null,null,null,null,null,null,null,null,null,null,null,null,null,null,null,null,null,"~~~~~~~~~~~~~~~~~~~~~~~~~~~~~~~~~~~~~~~~~~~~~~~~~~~~~~~~~~~~~~~~~~~~~~~~~~~~~~~~~~~~~~~~~~~~~~~~~~~"]
[null,null,null,null,null,null,null,null,null,null,null,null,null,null,"","",null,null,null,null,null,null,null,null,null,null,null,null,null,null,null,null,null,null,null,null,null,null,null,null,null,null,null,null,null,null,null,null,null,null,null,null,null,null,null,null,null,null,null,null,null,null,null,null,null,null,null,null,null,null,null,null,null,null,null,null,null,null,null,null,null,null,null,null,null,null,null,null,null,null,null,null,null,null,null,null,null,null,null,null,null,null,null,null,null,null,null,null,null,null,null,null,null,null,null,null,"~~~~~~~~~~~~~~~~~~~~~~~~~~~~~~~~~~~~~~~~~~~~~~~~~~~~~~~~~~~~~~~~~~~~~~~~~~~~~~~~~~~~~~~~~~~~~~~~~~~"]
[null,null,null,null,null,null,null,null,null,null,null,null,null,null,"","",null,null,null,null,null,null,null,null,null,null,null,null,null,null,null,null,null,null,null,null,null,null,null,null,null,null,null,null,null,null,null,null,null,null,null,null,null,null,null,null,null,null,null,null,null,null,null,null,null,null,null,null,null,null,null,null,null,null,null,null,null,null,null,null,null,null,null,null,null,null,null,null,null,null,null,null,null,null,null,null,null,null,null,null,null,null,null,null,null,null,null,null,null,null,null,null,null,null,null,null,"~~~~~~~~~~~~~~~~~~~~~~~~~~~~~~~~~~~~~~~~~~~~~~~~~~~~~~~~~~~~~~~~~~~~~~~~~~~~~~~~~~~~~~~~~~~~~~~~~~~"]

{"sheet":"order2","index":1,"n_rows":26,"n_cols":14,"rows_kept":26,"cut":false,"hidden":false,"merged":[[6,1,6,2],[6,3,6,7],[6,8,6,9],[6,10,6,11],[1,1,1,11],[2,1,2,4],[2,5,2,10],[3,1,3,2],[3,4,3,5],[3,6,3,7],[3,8,3,9],[3,10,3,11],[4,1,4,2],[4,3,4,7],[4,8,4,9],[4,10,4,11],[5,1,5,2],[5,3,5,7],[5,8,5,9],[5,10,5,11],[7,1,7,2],[25,1,25,2],[25,3,25,7],[25,8,25,10],[19,1,19,11],[20,1,20,11],[21,1,21,11],[22,1,22,11],[23,1,23,11],[24,1,24,2],[24,3,24,7],[24,8,24,10],[8,1,8,2],[8,3,8,4],[8,5,8,6],[8,7,8,10]]}
[null,{"$f":"CONCATENATE(B10,\"~\",C10,\"~\",D10,\"~\",E10,\"~\",F10,\"~\",G10,\"~\",H10,\"~\",I10,\"~\",J10,\"~\",K10,\"~\",B11,\"~\",C11,\"~\",D11,\"~\",E11,\"~\",F11,\"~\",G11,\"~\",H11)","v":"~~~~~~~~~~~~~~~~"},null,null,null,null,null,null,null,null,null,{"$f":"OFFSET(save!A3,MAX(ROW(save!A:A)*(save!A:A<>\"\"))-3,0)","v":6}]
[null,"الشعار"]
[null,"فاتورة مبيعات اجلة",null,null,null,{"$f":"[1]MyDate!A1","v":"اسم الفندق هنا"},null,null,null,null,null,null,null,{"$f":"AND(G4<>\"\",K4<>\"\",D5<>\"\",K5<>\"\",D6<>\"\",K6<>\"\",D7<>\"\",K7<>\"\",D8<>\"\",B10<>\"\")","v":false}]
[null,"رقم الفاتورة",null,{"$f":"L1+1","v":7},"نوع الحجز\nشركة/افراد",null,null,null,"الجنسية",null,null,null,null,{"$f":"_xlfn.CONCAT(IF(G4=\"\",E4&\" -\",\"\"),IF(K4=\"\",I4&\" -\",\"\"),IF(D5=\"\",B5&\" -\",\"\"),IF(K5=\"\",I5&\" -\",\"\"),IF(D6=\"\",B6&\" -\",\"\"),IF(K6=\"\",I6&\" -\",\"\"),IF(D7=\"\",B7&\" -\",\"\"),IF(K7=\"\",I7&\" -\",\"\"),IF(B10=\"\",H9&\" -\",\"\"))","v":"نوع الحجز\nشركة/افراد -الجنسية -اسم الشركة\nاسم النزيل -رقم الشركة\nرقم الهوية -اسم المندوب\nاسم المرافق -تاريخ الدخول -المسئول\nعن الحجز -تاريخ الخروج -ارقام الغرف بالترتيب -"}]
["شركة","اسم الشركة\nاسم النزيل",null,null,null,null,null,null,"رقم الشركة\nرقم الهوية",null,null,null,null,{"$f":"IF(N3,\"\",_xlfn.CONCAT(\"اكمل ادخال البيانات الناقصة\",CHAR(10),CHAR(10),N4))","v":"اكمل ادخال البيانات الناقصة\n\nنوع الحجز\nشركة/افراد -الجنسية -اسم الشركة\nاسم النزيل -رقم الشركة\nرقم الهوية -اسم المندوب\nاسم المرافق -تاريخ الدخول -المسئول\nعن الحجز -تاريخ الخروج -ارقام الغرف بالترتيب -"}]
["افراد","اسم المندوب\nاسم المرافق",null,null,null,null,null,null,"تاريخ الدخول"]
[null,"المسئول\nعن الحجز",null,null,null,null,null,null,"تاريخ الخروج"]
[null,"السعر للافراد",null,null,"عدد الغرف",{"$f":"COUNT(B10:K19)","v":0},"عدد الاسرة",{"$f":"[1]MyDate!H1/[1]MyDate!E1*F8","v":0},"عدد الليالي",{"$f":"K7-K6","v":0},"الاجمالي",{"$f":"IFERROR(D8*F8*J8,\"شركة\")","v":0}]
[null,"عدد الايام\nالمتبقية",null,{"$f":"IF(K6=\"\",\"\",IF(K7<=TODAY(),\"منتهي\",DATEDIF(TODAY(),K7,\"d\")))","v":""},null,null,null,"ارقام الغرف بالترتيب",null,null,null,"ملاحظات عامة"]
[]
[]
[]
[]
[]
[]
[]
[]
[]
[]
[null,"اقرار تسليم غرف "]
[null,"اقر انا مستأجر الغرف المذكور ارقامها اعلاه بانني قد استلمت جميع الغرف و المفاتيح الخاصه بها بالتاريخ المذكور"]
[null,"اعلاه كما هوه مدون وانني ملزم بارجاع الغرف و المفاتيح كما تسلمتها في التاريخ المحدد للخروج "]
[null,"وملتزم بارجاعها قبل ظهر ميعاد الخروج الى موظف الاستقبال "]
[null,"ملحوظه : هذه الفاتورة غير محاسب عليها وهي فقط اثبات تسكين للشركة او الافراد "]
[null,"المقر بما فيه",null,{"$f":"CONCATENATE(D5,\" ( المرافق ) \",D6)","v":" ( المرافق ) "},null,null,null,null,"التوقيع"]
[null,"الاستقبال",null,{"$f":"OFFSET([1]MyDate!C3,MAX(ROW([1]MyDate!C:C)*([1]MyDate!C:C<>\"\"))-3,0)","v":{"$error":"#VALUE!"}},null,null,null,null,"التوقيع"]